lending/lending_fUSD_20241228
["ID","MTS","AMOUNT","RATE_DAILY","PERIOD"]
[346900503,1735351850286,-500.0,0.00012266,2]
[346900504,1735351850296,-2683.44,0.00012266,2]
[346900505,1735351850305,-831.16660812,0.00012266,2]
[346900506,1735351850315,-209.0807,0.00012266,2]
[346900507,1735351850324,-502.39,0.00012295,2]
[346900508,1735351850334,-2079.56,0.00012295,2]
[346900509,1735351850344,-500.0,0.00012295,2]
[346900510,1735351850353,-64715.01465153,0.00012295,2]
[346900511,1735351850363,-285.9,0.000123,2]
[346900512,1735351850374,-239.42,0.00012327,2]
[346900513,1735351850384,-774.55,0.00012328,2]
[346900514,1735351850395,-774.55,0.00012328,2]
[346900515,1735351850405,-774.55,0.00012328,2]
[346900516,1735351850415,-982.38,0.00012328,2]
[346900517,1735351850425,-982.38,0.00012328,2]
[346900518,1735351850436,-982.38,0.00012328,2]
[346900519,1735351850446,-151.0,0.00012329,2]
[346900520,1735351850455,-151.0,0.00012329,2]
[346900521,1735351850466,-151.0,0.00012329,2]
[346900522,1735351850475,-151.0,0.00012329,2]
[346900523,1735351850485,-151.0,0.00012329,2]
[346900524,1735351850495,-151.0,0.00012329,2]
[346900525,1735351850504,-151.0,0.00012329,2]
[346900526,1735351850514,-151.0,0.00012329,2]
[346900527,1735351850524,-151.0,0.00012329,2]
[346900528,1735351850537,-16.00612094,0.00012329,2]
[346900546,1735352103580,161.0,0.00012329,30]
[346900547,1735352269063,507.84,8.964e-05,2]
[346900550,1735352404510,161.0,0.00012329,30]
[346900552,1735352704398,161.18678236,0.00012329,30]
[346900553,1735352726811,460.01581629,0.0002,120]
[346901748,1735353032048,-186.69,0.00010137,2]
[346901749,1735353032059,-189.64,0.00010137,2]
[346901750,1735353032068,-152.45,0.00010637,2]
[346901751,1735353032077,-151.04,0.00010637,2]
[346901752,1735353032087,-151.89,0.00010637,2]
[346901753,1735353032096,-152.23,0.00010637,2]
[346901754,1735353032106,-152.84,0.00010637,2]
[346901755,1735353032115,-218.49,0.00010823,2]
[346901756,1735353032125,-250.0,0.00010831,2]
[346901757,1735353032135,-200.0,0.00010837,2]
[346901758,1735353032145,-250.0,0.00010851,2]
[346901759,1735353032154,-323.68,0.00010852,2]
[346901760,1735353032165,-1000.0,0.00010855,2]
[346901761,1735353032174,-303.02,0.00010929,2]
[346901762,1735353032184,-300.0,0.00010998,2]
[346901763,1735353032194,-382.5,0.00010998,2]
[346901764,1735353032203,-368.91,0.00010998,2]
[346901765,1735353032212,-377.3,0.00010998,2]
[346901766,1735353032221,-372.65,0.00010999,2]
[346901767,1735353032231,-381.96,0.00010999,2]
[346901768,1735353032241,-378.37,0.00010999,2]
[346901769,1735353032251,-368.81,0.00010999,2]
[346901770,1735353032261,-381.27,0.00010999,2]
[346901771,1735353032271,-511.46505018,0.00010999,2]
[346901772,1735353032280,-500.0,0.00010999,2]
[346901773,1735353032291,-527.07503582,0.00010999,2]
[346901778,1735353032526,-607.35,0.00010999,2]
[346901780,1735353032537,-500.0,0.00010999,2]
[346901782,1735353032547,-500.0,0.00010999,2]
[346901784,1735353032556,-507.84,0.00011228,2]
[346901786,1735353032566,-500.0,0.00011273,2]
[346901788,1735353032575,-607.35,0.00011273,2]
[346901790,1735353032585,-500.0,0.00011273,2]
[346901791,1735353032595,-500.0,0.00011273,2]
[346901793,1735353032604,-5482.32020431,0.00011285,2]
[346901795,1735353032614,-15481.44761,0.00011287,2]
[346901797,1735353032623,-1000.0,0.00011444,2]
[346901799,1735353032632,-500.0,0.00011544,2]
[346901801,1735353032642,-500.0,0.00011544,2]
[346901802,1735353032652,-500.0,0.00011544,2]
[346901805,1735353032661,-656.88,0.00011544,2]
[346901806,1735353032670,-500.0,0.00011544,2]
[346901808,1735353032680,-904.48,0.00011544,2]
[346901810,1735353032690,-500.0,0.00011544,2]
[346901813,1735353032700,-500.0,0.00011544,2]
[346901814,1735353032709,-500.0,0.00011544,2]
[346901817,1735353032718,-500.0,0.00011544,2]
[346901819,1735353032728,-705.04,0.00011544,2]
[346901821,1735353032738,-500.0,0.00011544,2]
[346901823,1735353032747,-500.0,0.00011544,2]
[346901824,1735353032757,-500.0,0.00011544,2]
[346901827,1735353032767,-500.0,0.00011544,2]
[346901828,1735353032778,-500.0,0.00011544,2]
[346901829,1735353032787,-500.0,0.00011544,2]
[346901830,1735353032797,-500.0,0.00011544,2]
[346901831,1735353032806,-500.0,0.00011544,2]
[346901832,1735353032815,-500.0,0.00011544,2]
[346901833,1735353032825,-500.0,0.00011547,2]
[346901834,1735353032835,-607.35,0.00011547,2]
[346901835,1735353032844,-500.0,0.00011547,2]
[346901836,1735353032854,-500.0,0.00011547,2]
[346901837,1735353032863,-494.822,0.0001171,2]
[346901839,1735353032872,-500.0,0.00011817,2]
[346901841,1735353032882,-500.0,0.00011818,2]
[346901843,1735353032892,-500.0,0.00011818,2]
[346901845,1735353032900,-500.0,0.00011818,2]
[346901846,1735353032909,-656.88,0.00011818,2]
[346901847,1735353032918,-500.0,0.00011818,2]
[346901848,1735353032927,-904.48,0.00011818,2]
[346901849,1735353032937,-500.0,0.00011818,2]
[346901850,1735353032946,-500.0,0.00011818,2]
[346901851,1735353032955,-500.0,0.00011818,2]
[346901852,1735353032964,-500.0,0.00011818,2]
[346901853,1735353032974,-705.04,0.00011818,2]
[346901854,1735353032983,-500.0,0.00011818,2]
[346901855,1735353032993,-500.0,0.00011818,2]
[346901856,1735353033003,-500.0,0.00011818,2]
[346901857,1735353033012,-500.0,0.00011818,2]
[346901858,1735353033022,-500.0,0.00011818,2]
[346901859,1735353033031,-500.0,0.00011818,2]
[346901860,1735353033041,-500.0,0.00011818,2]
[346901861,1735353033051,-500.0,0.00011818,2]
[346901862,1735353033060,-500.0,0.00011818,2]
[346901863,1735353033070,-633.8237457,0.00011821,2]
[346901864,1735353033080,-607.35,0.00011821,2]
[346901865,1735353033090,-500.0,0.00011821,2]
[346901866,1735353033099,-500.0,0.00011821,2]
[346901867,1735353033110,-500.0,0.0001195,2]
[346901868,1735353033120,-500.0,0.0001195,2]
[346901869,1735353033129,-521.08,0.0001195,2]
[346901870,1735353033139,-769.85,0.0001195,2]
[346901871,1735353033149,-605.78,0.0001195,2]
[346901872,1735353033160,-3302.23,0.0001195,2]
[346901873,1735353033170,-509.69,0.0001195,2]
[346901874,1735353033180,-500.0,0.0001195,2]
[346901875,1735353033190,-500.0,0.0001195,2]
[346901876,1735353033200,-500.0,0.0001195,2]
[346901877,1735353033210,-636.0,0.00011988,2]
[346901878,1735353033221,-9676.36,0.00011988,2]
[346901879,1735353033231,-150.0,0.00011988,2]
[346901880,1735353033241,-1541.4,0.00012055,2]
[346901881,1735353033251,-420.0,0.00012086,2]
[346901882,1735353033262,-205.0,0.0001209,2]
[346901883,1735353033272,-500.0,0.00012091,2]
[346901884,1735353033282,-500.0,0.00012092,2]
[346901885,1735353033291,-500.0,0.00012092,2]
[346901886,1735353033301,-500.0,0.00012092,2]
[346901887,1735353033311,-656.88,0.00012092,2]
[346901888,1735353033321,-500.0,0.00012092,2]
[346901889,1735353033331,-904.48,0.00012092,2]
[346901890,1735353033340,-500.0,0.00012092,2]
[346901891,1735353033350,-500.0,0.00012092,2]
[346901892,1735353033360,-500.0,0.00012092,2]
[346901893,1735353033370,-500.0,0.00012092,2]
[346901894,1735353033380,-705.04,0.00012092,2]
[346901895,1735353033389,-500.0,0.00012092,2]
[346901896,1735353033398,-500.0,0.00012092,2]
[346901897,1735353033408,-500.0,0.00012092,2]
[346901898,1735353033418,-500.0,0.00012092,2]
[346901899,1735353033429,-500.0,0.00012092,2]
[346901900,1735353033439,-500.0,0.00012092,2]
[346901901,1735353033448,-500.0,0.00012092,2]
[346901902,1735353033458,-500.0,0.00012092,2]
[346901903,1735353033467,-500.0,0.00012092,2]
[346901904,1735353033477,-607.35,0.00012095,2]
[346901905,1735353033486,-500.0,0.00012095,2]
[346901906,1735353033495,-405.02828894,0.00012095,2]
[346901907,1735353033505,-218.49,0.00012175,2]
[346901908,1735353033515,-436.61,0.00012192,2]
[346901909,1735353033524,-436.61,0.00012192,2]
[346901910,1735353033534,-436.61,0.00012192,2]
[346901911,1735353033543,-436.61,0.00012192,2]
[346901912,1735353033552,-436.61,0.00012192,2]
[346901913,1735353033562,-874.74,0.00012192,2]
[346901914,1735353033571,-1103.35587,0.0001221,2]
[346901915,1735353033580,-1000.0,0.00012212,2]
[346901916,1735353033590,-500.0,0.00012224,2]
[346901917,1735353033599,-500.0,0.00012224,2]
[346901918,1735353033610,-521.08,0.00012224,2]
[346901919,1735353033620,-769.85,0.00012224,2]
[346901920,1735353033629,-605.78,0.00012224,2]
[346901921,1735353033638,-3302.23,0.00012224,2]
[346901922,1735353033648,-509.69,0.00012224,2]
[346901923,1735353033658,-500.0,0.00012224,2]
[346901924,1735353033667,-500.0,0.00012224,2]
[346901925,1735353033677,-500.0,0.00012224,2]
[346901926,1735353033686,-429.2501615,0.0001231,2]
[346901927,1735353033696,-82177.21456708,0.0001232,2]
[346901928,1735353033709,-7226.53571653,0.0001232,2]
[346901929,1735353033731,-24533.19896097,0.0001232,2]
[346901930,1735353033743,-610.56,0.0001232,2]
[346901931,1735353033755,-4793.7,0.0001232,2]
[346901932,1735353033767,-1162.63548311,0.0001232,2]
[346901933,1735353033786,-3881.73702297,0.0001232,2]
[346901934,1735353033797,-3799.37093081,0.0001232,2]
[346901935,1735353033809,-291.0738261,0.0001232,2]
[346901936,1735353033826,-100815.46592623,0.0001232,2]
[346901937,1735353033836,-5647.0,0.00012329,2]
[346901938,1735353033846,-369.57,0.00012329,2]
[346901939,1735353033855,-500.0,0.00012365,2]
[346901940,1735353033864,-500.0,0.00012365,2]
[346901941,1735353033874,-500.0,0.00012366,2]
[346901942,1735353033883,-500.0,0.00012366,2]
[346901943,1735353033893,-500.0,0.00012366,2]
[346901944,1735353033903,-656.88,0.00012366,2]
[346901945,1735353033913,-500.0,0.00012366,2]
[346901946,1735353033922,-904.48,0.00012366,2]
[346901947,1735353033932,-500.0,0.00012366,2]
[346901948,1735353033941,-500.0,0.00012366,2]
[346901949,1735353033951,-500.0,0.00012366,2]
[346901950,1735353033960,-500.0,0.00012366,2]
[346901951,1735353033969,-705.04,0.00012366,2]
[346901952,1735353033979,-500.0,0.00012366,2]
[346901953,1735353033988,-500.0,0.00012366,2]
[346901954,1735353033998,-500.0,0.00012366,2]
[346901955,1735353034008,-500.0,0.00012366,2]
[346901956,1735353034018,-500.0,0.00012366,2]
[346901957,1735353034028,-592.55838891,0.00012366,2]
[346901958,1735353034041,-500.0,0.00012366,2]
[346901959,1735353034051,-500.0,0.00012366,2]
[346901960,1735353034060,-500.0,0.00012366,2]
[346901961,1735353034070,-607.35,0.00012369,2]
[346901962,1735353034183,-500.0,0.00012369,2]
[346901963,1735353034194,-552.5,0.00012398,2]
[346901964,1735353034203,-500.0,0.00012398,2]
[346901965,1735353034214,-500.0,0.00012398,2]
[346901966,1735353034223,-500.0,0.00012398,2]
[346901967,1735353034233,-772.433725,0.00012398,2]
[346901968,1735353034243,-753.922174,0.00012398,2]
[346901969,1735353034253,-523.49,0.00012398,2]
[346901970,1735353034263,-500.0,0.00012398,2]
[346901971,1735353034273,-500.0,0.00012398,2]
[346901972,1735353034283,-500.0,0.00012398,2]
[346901973,1735353034292,-538.33,0.00012398,2]
[346901974,1735353034302,-677.73,0.00012398,2]
[346901975,1735353034311,-500.0,0.00012398,2]
[346901976,1735353034320,-500.0,0.00012398,2]
[346901977,1735353034330,-500.0,0.00012398,2]
[346901978,1735353034340,-500.0,0.00012398,2]
[346901979,1735353034350,-260.88064887,0.00012398,2]
[346901980,1735353034359,-1815.49,0.00012398,2]
[346901981,1735353034370,-500.0,0.00012398,2]
[346901982,1735353034379,-319.98324803,0.00012398,2]
[346901983,1735353034389,-500.0,0.00012398,2]
[346901984,1735353034399,-500.0,0.00012398,2]
[346901985,1735353034408,-510.6,0.00012398,2]
[346901986,1735353034417,-912.71,0.00012398,2]
[346901987,1735353034428,-500.0,0.00012398,2]
[346901988,1735353034438,-500.0,0.00012398,2]
[346901989,1735353034448,-500.0,0.00012398,2]
[346901990,1735353034459,-500.0,0.00012398,2]
[346901991,1735353034469,-1773.4,0.00012398,2]
[346901992,1735353034481,-500.0,0.00012398,2]
[346901993,1735353034491,-500.0,0.00012398,2]
[346901994,1735353034502,-500.0,0.00012398,2]
[346901995,1735353034511,-500.0,0.00012398,2]
[346901996,1735353034521,-500.0,0.00012398,2]
[346901997,1735353034530,-1283.98,0.00012398,2]
[346901998,1735353034540,-500.0,0.00012398,2]
[346901999,1735353034549,-500.0,0.00012398,2]
[346902000,1735353034559,-500.0,0.00012398,2]
[346902001,1735353034568,-500.0,0.00012398,2]
[346902002,1735353034577,-500.0,0.00012398,2]
[346902003,1735353034587,-524.47,0.00012398,2]
[346902004,1735353034596,-2533.75,0.00012398,2]
[346902005,1735353034605,-500.0,0.00012398,2]
[346902006,1735353034614,-506.97,0.00012398,2]
[346902007,1735353034624,-500.0,0.00012398,2]
[346902008,1735353034634,-500.0,0.00012398,2]
[346902009,1735353034643,-859.58,0.00012398,2]
[346902010,1735353034652,-500.0,0.00012398,2]
[346902011,1735353034662,-16992.97593299,0.00012399,2]
[346902012,1735353034672,-16992.97593296,0.00012399,2]
[346902013,1735353034682,-16992.97593296,0.00012399,2]
[346902014,1735353034692,-16992.97593296,0.00012399,2]
[346902015,1735353034701,-257.31,0.000124,2]
[346902016,1735353034711,-151.0,0.00012411,2]
[346902017,1735353034721,-151.0,0.00012411,2]
[346902018,1735353034732,-151.0,0.00012411,2]
[346902019,1735353034742,-151.0,0.00012411,2]
[346902020,1735353034751,-151.0,0.00012411,2]
[346902021,1735353034762,-225.109259,0.00012411,2]
[346902022,1735353034771,-151.0,0.00012411,2]
[346902023,1735353034781,-460.08751727,0.00012439,2]
[346902024,1735353034791,-477.33241521,0.00012439,2]
[346902025,1735353034800,-477.33241521,0.00012447,2]
[346902026,1735353034810,-477.33241521,0.00012447,2]
[346902027,1735353034819,-460.08751727,0.00012447,2]
[346902028,1735353034829,-460.08751727,0.0001245,2]
[346902029,1735353034838,-460.08751727,0.00012451,2]
[346902030,1735353034848,-200.0,0.00012453,2]
[346902031,1735353034857,-200.0,0.00012456,2]
[346902032,1735353034867,-500.0,0.00012456,2]
[346902033,1735353034876,-500.0,0.00012457,2]
[346902034,1735353034886,-2236.2,0.00012457,2]
[346902035,1735353034895,-500.0,0.00012457,2]
[346902036,1735353034904,-500.0,0.00012457,2]
[346902037,1735353034913,-607.86,0.00012457,2]
[346902038,1735353034922,-1320.86,0.00012457,2]
[346902039,1735353034933,-500.0,0.00012457,2]
[346902040,1735353034942,-500.0,0.00012457,2]
[346902041,1735353034951,-500.0,0.00012457,2]
[346902042,1735353034961,-605.19068924,0.00012457,2]
[346902043,1735353034971,-500.0,0.00012457,2]
[346902044,1735353034981,-809.58,0.00012457,2]
[346902045,1735353034990,-500.0,0.00012457,2]
[346902046,1735353035000,-200.0,0.00012457,2]
[346902047,1735353035009,-2668.608,0.00012458,2]
[346902048,1735353035019,-217.783,0.00012458,2]
[346902049,1735353035030,-477.33241521,0.00012458,2]
[346902050,1735353035041,-205.0,0.0001246,2]
[346902051,1735353035050,-200.0,0.00012461,2]
[346902052,1735353035059,-460.08751727,0.00012466,2]
[346902053,1735353035069,-477.33241521,0.00012467,2]
[346902054,1735353035078,-477.33241521,0.00012467,2]
[346902055,1735353035089,-460.08751727,0.00012469,2]
[346902056,1735353035098,-8987.75494982,0.00012469,2]
[346902057,1735353035111,-1407.06112803,0.00012469,2]
[346902058,1735353035123,-947.31015434,0.00012469,2]
[346902059,1735353035134,-5131.33265998,0.00012469,2]
[346902060,1735353035145,-345.0524084,0.00012469,2]
[346902062,1735353037948,-509.55688897,0.0001195,2]
[346902063,1735353038050,-511.90603702,0.0001195,2]
[346902064,1735353038063,-654.50000212,0.0001195,2]
[346902065,1735353038275,-312.27156458,0.0001195,2]
[346902066,1735353038291,-4.67550731,0.0001195,2]
[346902067,1735353038301,-1992.91,0.00012224,2]
[346902068,1735353038311,-500.0,0.00012398,2]
[346902069,1735353038321,-132.11557234,0.00012398,2]
[346902070,1735353038332,-2010.91442766,0.00012398,2]
[346902071,1735353038343,-174.46463239,0.00012469,2]
[346902072,1735353038352,-151.0,0.00012469,2]
[346902074,1735353038362,-238.849202,0.00012469,2]
[346902076,1735353038371,-238.849202,0.00012469,2]
[346902078,1735353038381,-500.0,0.00012498,2]
[346902080,1735353038390,-500.0,0.00012498,2]
[346902082,1735353038399,-521.08,0.00012498,2]
[346902084,1735353038409,-411.03600972,0.00012498,2]
[346902086,1735353038420,-308.69543579,0.00012498,2]
[346902088,1735353038431,-50.11855449,0.00012498,2]
[346902091,1735353038440,-605.78,0.00012498,2]
[346902093,1735353038450,-101.35214677,0.00012498,2]
[346902095,1735353038462,-519.07829482,0.00012498,2]
[346902097,1735353038473,-2681.79955841,0.00012498,2]
[346902099,1735353038482,-509.69,0.00012498,2]
[346902101,1735353038491,-185.33678027,0.00012498,2]
[346902103,1735353038501,-500.0,0.00012498,2]
[346902105,1735353038511,-500.0,0.00012498,2]
[346902106,1735353038520,-1992.91,0.00012498,2]
[346902107,1735353038531,-156.32938417,0.00012515,2]
[346902108,1735353038542,-1213.36061583,0.00012515,2]
[346902109,1735353038552,-1008.21,0.00012515,2]
[346902110,1735353038561,-2456.25824442,0.00012516,2]
[346902111,1735353038574,-447.92256418,0.00012516,2]
[346902115,1735353040041,-499.38000045,0.00012516,2]
[346902116,1735353040053,-357.03116851,0.00012516,2]
[346902117,1735353040162,-440.5832377,0.00012516,2]
[346902118,1735353040173,-12823.25108104,0.00012516,2]
[346902119,1735353040183,-151.0,0.00012516,2]
[346902120,1735353040193,-151.0,0.00012516,2]
[346902121,1735353040203,-2793.532619,0.00012516,2]
[346902122,1735353040212,-2793.532619,0.00012516,2]
[346902123,1735353040222,-151.0,0.00012543,2]
[346902124,1735353040231,-151.0,0.00012543,2]
[346902125,1735353040241,-151.0,0.00012543,2]
[346902126,1735353040250,-5000.0,0.00012543,2]
[346902127,1735353040260,-238.452,0.00012543,2]
[346902128,1735353040270,-6033.21232047,0.00012555,2]
[346902129,1735353040287,-3795.15533901,0.00012555,2]
[346902130,1735353040298,-4927.23480549,0.00012555,2]
[346902131,1735353040309,-607.46602351,0.00012555,2]
[346902132,1735353040320,-477.77506,0.00012555,2]
[346902133,1735353040331,-1152.13238448,0.00012555,2]
[346902134,1735353040340,-151.0,0.00012574,2]
[346902135,1735353040350,-151.0,0.00012574,2]
[346902136,1735353040359,-151.0,0.00012589,2]
[346902137,1735353040369,-151.0,0.00012589,2]
[346902138,1735353040378,-146.44756838,0.000126,2]
[346902336,1735353043165,-376.66,0.00012457,2]
[346902338,1735353043175,-500.0,0.00012457,2]
[346902340,1735353043185,-151.0,0.00012555,2]
[346902342,1735353043194,-4.55243162,0.000126,2]
[346902344,1735353043203,-152.05658,0.000126,2]
[346902346,1735353043213,-1376.95461706,0.000126,2]
[346902348,1735353043222,-1376.95461692,0.000126,2]
[346902350,1735353043231,-778.6679908,0.000126,2]
[346902640,1735353046096,-598.28662612,0.000126,2]
[346902642,1735353046107,-509.97145999,0.000126,2]
[346902644,1735353046118,-866.98315693,0.000126,2]
[346902646,1735353046127,-1376.95461692,0.000126,2]
[346902648,1735353046136,-1376.95461692,0.000126,2]
[346902650,1735353046146,-1376.95461692,0.000126,2]
[346902652,1735353046155,-1376.95461692,0.000126,2]
[346902654,1735353046164,-1376.95461692,0.000126,2]
[346902656,1735353046173,-1376.95461692,0.000126,2]
[346902658,1735353046183,-1376.95461692,0.000126,2]
[346902660,1735353046192,-1376.95461692,0.000126,2]
[346902662,1735353046201,-1376.95461692,0.000126,2]
[346902664,1735353046210,-1376.95461692,0.000126,2]
[346902666,1735353046220,-1376.95461692,0.000126,2]
[346902668,1735353046229,-1169.46323,0.000126,2]
[346902670,1735353046238,-23337.54197695,0.00012608,2]
[346902673,1735353046254,-6917.01038645,0.00012608,2]
[346902675,1735353046264,-151.0,0.00012608,2]
[346902677,1735353046274,-238.849202,0.00012608,2]
[346902679,1735353046283,-151.463863,0.00012608,2]
[346902681,1735353046293,-238.849202,0.00012608,2]
[346902683,1735353046303,-2793.532619,0.00012608,2]
[346902685,1735353046314,-2793.532619,0.00012608,2]
[346902687,1735353046324,-151.0,0.00012608,2]
[346902689,1735353046333,-151.0,0.00012608,2]
[346902691,1735353046343,-151.0,0.00012608,2]
[346902693,1735353046352,-1376.95461692,0.00012609,2]
[346902695,1735353046361,-1376.95461692,0.00012631,2]
[346902697,1735353046371,-500.0,0.00012639,2]
[346902699,1735353046381,-151.0,0.00012639,2]
[346902701,1735353046391,-151.0,0.00012639,2]
[346902703,1735353046401,-500.0,0.00012639,2]
[346902705,1735353046412,-151.0,0.0001264,2]
[346902707,1735353046422,-80.88755884,0.0001264,2]
[346903281,1735353127317,158.0,0.0001264,30]
[346903288,1735353217202,494.21,9.609e-05,2]
[346903294,1735353554319,158.0,9.609e-05,30]
[346903297,1735353930460,2053.41,8e-05,2]
[346903302,1735353998505,158.21857108,9.609e-05,30]
[346903341,1735354087083,469.49,9.14e-05,2]
[346903733,1735354232224,-999.99998538,0.0001,2]
[346903734,1735354232237,-1069.00829095,0.0001,2]
[346903735,1735354232251,-1130.0,0.0001,2]
[346903737,1735354232264,-6800.99172367,0.0001,2]
[346903738,1735354232275,-300.0,0.00010942,2]
[346903740,1735354232286,-15907.91,0.00010943,2]
[346903741,1735354232296,-163.86,0.00010971,2]
[346903742,1735354232306,-823.90667996,0.00010999,2]
[346903743,1735354232387,-296.89508538,0.00010999,2]
[346903744,1735354232399,-1588.34492738,0.00011,2]
[346903745,1735354232411,-1304.9999775,0.00011,2]
[346903746,1735354232423,-6389.48044361,0.00011,2]
[346903747,1735354232435,-426.87324302,0.00011,2]
[346903748,1735354232447,-813.60413852,0.00011,2]
[346903749,1735354232555,-752.76793986,0.00011,2]
[346903750,1735354232568,-38723.92933011,0.00011,2]
[346903751,1735354232579,-250.0,0.00011047,2]
[346903752,1735354232589,-16426.16,0.0001108,2]
[346903753,1735354232600,-5608.24,0.00011089,2]
[346903754,1735354232614,-250.0,0.00011091,2]
[346903755,1735354232624,-997.27,0.00011092,2]
[346903756,1735354232634,-30795.36,0.00011094,2]
[346903757,1735354232646,-400.0,0.00011131,2]
[346903758,1735354232656,-1000.0,0.00011149,2]
[346903759,1735354232667,-165.5,0.00011151,2]
[346903760,1735354232677,-150.0,0.00011195,2]
[346903761,1735354232687,-5991.18289381,0.00011287,2]
[346903765,1735354238365,-2503.28177065,0.00011287,2]
[346903766,1735354238378,-1939.6,0.00011287,2]
[346903767,1735354238390,-311.184893,0.00011287,2]
[346903768,1735354238402,-1155.45453895,0.00011287,2]
[346903931,1735354240209,-369.04,0.00011287,2]
[346903934,1735354240220,-578.68946,0.00011287,2]
[346904267,1735354243479,-1453.90929259,0.00011287,2]
[346904269,1735354243490,-469.49,0.00011404,2]
[346904272,1735354243500,-382.49,0.00011445,2]
[346904274,1735354243510,-377.29,0.00011445,2]
[346904275,1735354243519,-300.0,0.00011445,2]
[346904276,1735354243529,-382.25,0.00011445,2]
[346904277,1735354243538,-369.13,0.00011445,2]
[346904278,1735354243548,-376.35,0.00011445,2]
[346904279,1735354243557,-376.29,0.00011445,2]
[346904280,1735354243566,-375.43,0.00011446,2]
[346904281,1735354243577,-374.01,0.00011446,2]
[346904282,1735354243586,-377.45,0.00011446,2]
[346904283,1735354243595,-371.22,0.00011446,2]
[346904285,1735354243605,-369.9,0.00011446,2]
[346904287,1735354243616,-374.75,0.00011446,2]
[346904289,1735354243627,-381.53,0.00011446,2]
[346904291,1735354243637,-375.72,0.00011446,2]
[346904293,1735354243647,-1003.16,0.00011446,2]
[346904295,1735354243659,-381.39,0.00011485,2]
[346904297,1735354243669,-430.75,0.00011486,2]
[346904299,1735354243679,-300.0,0.000115,2]
[346904301,1735354243689,-368.96,0.00011543,2]
[346904303,1735354243699,-379.96,0.00011543,2]
[346904305,1735354243710,-370.67,0.00011543,2]
[346904308,1735354243720,-376.47,0.00011543,2]
[346904310,1735354243730,-371.19,0.00011544,2]
[346904312,1735354243740,-381.94,0.00011544,2]
[346904314,1735354243750,-378.77,0.00011544,2]
[346904316,1735354243760,-372.21,0.00011544,2]
[346904318,1735354243769,-381.29,0.00011544,2]
[346904320,1735354243779,-381.73,0.00011544,2]
[346904321,1735354243789,-369.51,0.00011544,2]
[346904323,1735354243799,-375.46,0.00011544,2]
[346904326,1735354243809,-493.253,0.0001201,2]
[346904328,1735354243820,-637.892,0.00012014,2]
[346904330,1735354243831,-150.0,0.00012014,2]
[346904332,1735354243841,-159.376,0.00012014,2]
[346904334,1735354243851,-3922.64,0.00012014,2]
[346904337,1735354243861,-679.133,0.00012014,2]
[346904340,1735354243870,-176.497,0.00012014,2]
[346904343,1735354243880,-150.837,0.00012014,2]
[346904345,1735354243889,-500.45679623,0.0001202,2]
[346904346,1735354243898,-437.36,0.00012055,2]
[346904348,1735354243908,-437.36,0.00012055,2]
[346904350,1735354243918,-437.09,0.00012055,2]
[346904352,1735354243927,-1962.8378,0.0001222,2]
[346904354,1735354243937,-500.0,0.00012365,2]
[346904356,1735354243947,-500.0,0.00012365,2]
[346904358,1735354243957,-500.0,0.00012398,2]
[346904360,1735354243966,-500.0,0.00012398,2]